Cogmind - Beta 15 @@@ ROGUE MODE // 2025.05.23 @ 14:19:20 // Winter2022/Polymind Player: Demo Result: Destroyed by exploding Fusion Modulator Performance ------------- Evolutions (0) 0 Regions Visited (1) 200 Robots Destroyed (8) 40 Value Destroyed (125) 125 Prototype IDs (0) 0 Alien Tech Used (0) 0 Bonus (540) 540 TOTAL SCORE: 535 Bonus ------- Polymind Skill 540 Cogmind --------- Core Integrity 0/250 Matter 0/0 Energy 50/50 System Corruption 0% Temperature Cool (24) Movement Walking (120) Location -10/Materials Parts ------- > --- POWER (1) -------- (None) > --- PROPULSION (2) --- Aluminum Leg > --- UTILITY (1) ------ Improved Heat Sink > --- WEAPON (1) ------- Particle Gun > --- INVENTORY (1) ---- (None) Peak State ------------ > --- POWER ------------ Light Ion Engine > --- PROPULSION ------- Wheel Wheel > --- UTILITY ---------- Machine Analyzer Recalibrator > --- WEAPON ----------- (None) > --- INVENTORY -------- Backup Power I Backup Power I Backup Propulsion I Backup Propulsion I Backup Propulsion I Backup Propulsion I Backup Plating I Backup Plating I Backup Laser I Backup Laser I Backup Laser I Backup Laser I [Rating: 11] Favorites ----------- Power Light Nuclear Core Engine Light Ion Engine Power Core Light Nuclear Core Propulsion Aluminum Leg Leg Aluminum Leg Wheel Wheel Utility Improved Heat Sink Device Improved Heat Sink Processor Machine Analyzer Weapon Particle Gun Energy Gun Particle Gun Build | -11 -10 ------- Run | Yrd Mat Slots Evolved . | . . Power . | . . Propulsion . | . . Utility . | . . Weapon . | . . Parts Attached . | . . Power . | . . Engine . | . . Core . | . . Reactor . | . . Propulsion . | . . Treads . | . . Leg . | . . Wheel . | . . Hover . | . . Flight . | . . Utility . | . . Device . | . . Storage . | . . Processor . | . . Hackware . | . . Protection . | . . Artifact . | . . Weapon . | . . Energy Gun . | . . Energy Cannon . | . . Ballistic Gun . | . . Ballistic Cannon . | . . Launcher . | . . Special Weapon . | . . Impact Weapon . | . . Slashing Weapon . | . . Piercing Weapon . | . . Special Melee Weapon . | . . Unidentified Prototypes . | . . Parts Lost 1 | . 1 Power . | . . Propulsion 1 | . 1 Utility . | . . Weapon . | . . Highest Loss Streak 1 | . 1 To Critical Strikes . | . . Average Backups 1 | . 1 Power . | . . Propulsion . | . . Utility . | . . Weapon . | . . Tool/Special . | . . Unused Backups 12 | . 12 Power 2 | . 2 Propulsion 4 | . 4 Utility 2 | . 2 Weapon 4 | . 4 Tool/Special . | . . Average Slot Usage (%) 89 | . 89 Engine 2 | . 2 Core 10 | . 10 Leg 32 | . 32 Wheel 5 | . 5 Device 19 | . 19 Processor 2 | . 2 Energy Gun 16 | . 16 Peak Build Rating 11 | . 11 Average Rating 8 | . 8 On Entrance . | . . Naked Turns 11 | . 11 Heaviest Build 9 | . 9 Greatest Support 20 | 3 20 Greatest Overweight (x) . | . . Average Overweight (x) . | . . Largest Inventory Capacity 12 | . 12 Average Capacity 2 | . 2 Most Carried 12 | . 12 Average Carried 1 | . 1 Final Capacity 1 | . 1 Final Carried . | . . Class Distribution -------------------- 83% | Grunt 14% | Mechanic Dominant Class ---------------- Grunt | -10/Materials Resources | -11 -10 ----------- Run | Yrd Mat Matter Collected . | . . Remotely . | . . Salvage Created 244 | . 244 Parts 11 | . 11 Haulers Intercepted . | . . Recyclers Shooed 2 | . 2 Parts Field Recycled . | . . Retrieved Matter . | . . Parts Self-Destructed . | . . Prevented . | . . Kills | -11 -10 ------- Run | Yrd Mat Combat Hostiles Destroyed 7 | . 7 Guns 7 | . 7 Classes Destroyed 3 | . 3 Tunneler 1 | . 1 Swarmer 5 | . 5 Grunt 2 | . 2 Best Kill Streak 3 | . 3 Combat Bots Only 3 | . 3 Max Kills in Single Turn 1 | . 1 Gunslinging . | . . Exploded . | . . Melee . | . . Uniques/NPCs Destroyed . | . . Combat | -11 -10 -------- Run | Yrd Mat Hostile Shots Fired 54 | . 54 Missed 9 | . 9 Hits 45 | . 45 Projectile 45 | . 45 Critical Strikes 1 | . 1 Damage Taken 576 | . 576 Core 289 | . 289 Absorbed by Shields . | . . Regen/Repaired (Parts) 40 | . 40 Core Remaining (%) 100 | 100 . Volleys Fired 34 | . 34 Largest 1 | . 1 Hottest 65 | . 65 Shots Fired 34 | . 34 Gun 34 | . 34 Cannon . | . . Launcher . | . . Special . | . . Kinetic . | . . Thermal 34 | . 34 Explosive . | . . Electromagnetic . | . . Robot Hit Streak 3 | . 3 Robot Miss Streak 6 | . 6 Penetration Max . | . . Secondary Targets . | . . Shots Hit Robots 17 | . 17 Core Hits 9 | . 9 Critical Kills . | . . Critical Parts Destroyed . | . . Critical Strikes . | . . Melee Attacks . | . . Impact . | . . Slashing . | . . Piercing . | . . Sneak Attacks . | . . Combat Hostiles . | . . Follow-up Attacks . | . . Damage Inflicted 320 | . 320 Guns 292 | . 292 Cannons . | . . Explosions . | . . Melee . | . . Ramming 28 | . 28 Kinetic . | . . Thermal 292 | . 292 Explosive . | . . Electromagnetic . | . . Impact . | . . Slashing . | . . Piercing . | . . Highest Corruption . | . . Average Corruption . | . . Corruption Purged . | . . Corruption Blocked . | . . Overload Shots . | . . Overflow Damage . | . . Projectiles . | . . Explosions . | . . Melee . | . . Knockbacks . | . . Impact . | . . Kinetic . | . . Secondary . | . . Self-Inflicted Damage 1 | . 1 Shots . | . . Rammed 4 | . 4 Targets Rammed 24 | . 24 Kicked 20 | . 20 Crushed . | . . Highest Temperature 18 | . 18 Average Temperature 18 | . 18 Received Heat Transfer 63 | . 63 Siege Activations . | . . Martial Activations . | . . Shielding Activations . | . . Robots Disrupted . | . . Combat Hostiles . | . . Robots Corrupted . | . . Combat Hostiles . | . . Parts Fried . | . . Impact Corruptions . | . . Robots Melted . | . . Combat Hostiles . | . . Parts Melted 1 | . 1 Heat Transferred 703 | . 703 Parts Sabotaged . | . . Parts Stolen . | . . Parts Stripped . | . . Power Chain Reactions . | . . Alert | -11 -10 ------- Run | Yrd Mat Maximum Alert Level . | . . Low Security (%) 100 | 100 100 Level 1 . | . . Level 2 . | . . Level 3 . | . . Level 4 . | . . Level 5 . | . . High Security . | . . Max Security . | . . Peak Influence 111 | . 111 Initial . | . . Average 36 | . 37 Influence Increases 196 | . 196 Destroy 0b10 Robot/C 140 | . 140 Destroy 0b10 Robot/NC 5 | . 5 Destroy Leader 30 | . 30 Successful Hack 5 | . 5 Destroy Structure 1 | . 1 Lose Combat Pursuer 15 | . 15 Influence Decreases 171 | . 171 Time Decay 161 | . 161 Lost Part 10 | . 10 Squads Dispatched 1 | . 1 Investigation 1 | . 1 Extermination . | . . Reinforcement . | . . Assault . | . . Garrison . | . . Intercept . | . . Searches Triggered . | . . Construction Impeded . | . . Haulers Reinforced . | . . Active Scanning Responses . | . . Cargo Convoy Interrupts . | . . Stealth | -11 -10 --------- Run | Yrd Mat Distress Signals 1 | . 1 Communications Jammed . | . . Distress Signals . | . . Times Spotted 15 | . 15 Peak Tracking Total 5 | . 5 Tactical Retreats 1 | . 1 Traps | -11 -10 ------- Run | Yrd Mat Traps Triggered 1 | . 1 Indirectly . | . . Trap Hack Attempts . | . . Triggered . | . . Disarmed . | . . Reprogrammed . | . . Reused . | . . Traps Extracted . | . . Installed . | . . Triggered . | . . Machines | -11 -10 ---------- Run | Yrd Mat Machines Disabled . | . . Max in Single Turn . | . . Machines Repaired . | . . Machines Dismantled . | . . Machines Sabotaged . | . . Overloaded Fab Kills . | . . Hacking | -11 -10 --------- Run | Yrd Mat Machines Accessed 2 | . 2 Terminals 1 | . 1 Fabricators . | . . Repair Stations 1 | . 1 Recycling Units . | . . Scanalyzers . | . . Garrison Access . | . . Total Hacks 6 | . 6 Successful 2 | . 2 Failed 4 | . 4 Catastrophic . | . . Database Lockouts . | . . Manual 1 | . 1 Terminals 3 | . 3 Fabricators . | . . Repair Stations 3 | . 3 Recycling Units . | . . Scanalyzers . | . . Garrison Access . | . . Terminal Hacks 1 | . 1 Zone Layout 1 | . 1 Fabricator Hacks . | . . Repair Station Hacks . | . . Recycling Unit Hacks . | . . Scanalyzer . | . . Garrison Access Hacks . | . . Unauthorized Hacks 1 | . 1 Terminals . | . . Fabricators . | . . Repair Stations 1 | . 1 Patch 1 | . 1 Recycling Units . | . . Scanalyzers . | . . Garrison Access . | . . Data Cores Recovered . | . . Used . | . . Hacking Detections 2 | . 2 Full Trace Events . | . . Feedback Events . | . . Feedback Blocked . | . . Robot Schematics Acquired . | . . Robots Built . | . . Authchips . | . . Time . | . . Total Robot Build Rating . | . . Part Schematics Acquired . | . . Parts Built . | . . Authchips . | . . Time . | . . Total Part Build Rating . | . . Parts Repaired . | . . Time . | . . Parts Recycled . | . . Recycled Matter . | . . Retrieved Matter . | . . Retrieved Components . | . . Parts Scanalyzed . | . . Part Schematics Acquired . | . . Parts Damaged . | . . Bothacking | -11 -10 ------------ Run | Yrd Mat Used RIF Installer . | . . Robots Hacked 2 | . 2 Non-combat 1 | . 1 Combat 1 | . 1 Robot Hacks Applied 2 | . 2 find_station 1 | . 1 find_shortcuts 1 | . 1 Relay Couplers Released . | . . Fabnet Peak Effective % . | . . Robots Rewired . | . . Allies Hacked . | . . Hacks Repelled . | . . Allies | -11 -10 -------- Run | Yrd Mat Total Allies . | . . Largest Group . | . . Highest-Rated Group . | . . Highest-Rated Ally . | . . Total Orders . | . . Ally Attacks . | . . Total Damage . | . . Kills . | . . Allies Corrupted . | . . Allies Melted . | . . Intel | -11 -10 ------- Run | Yrd Mat Active Infowar (turns) 60 | . 60 Machine Analysis 60 | . 60 Robot Analysis Total 2 | . 2 Derelict Logs Recovered . | . . Drone Launches . | . . Drone Recoveries . | . . Exploration | -11 -10 ------------- Run | Yrd Mat Turns Passed 439 | 9 430 Spaces Moved 279 | 18 261 Core 40 | 18 22 Treads . | . . Legs 182 | . 182 Wheels 57 | . 57 Hover . | . . Flight . | . . Fastest Speed 50 | 50 50 Average Speed 101 | 50 105 Slowest Speed 120 | 50 120 Overloaded Moves . | . . Propulsion Burnouts . | . . Robots Hopped . | . . Potential Cave-ins . | . . Cave-ins Triggered . | . . Exploration Rate (%) 20 | 3 37 Regions Visited 1 Branch Regions . Pre-discovered Areas . | . . Known Exits Taken . | . . Unknown Exits Taken 1 | 1 . Scrap Searched . | . . Spaces Dug . | . . Terrain Destroyed . | . . Melee . | . . Projectile . | . . AOE . | . . Terrain Rammed . | . . Walls Destroyed . | . . Machines Disabled . | . . Actions | -11 -10 --------- Run | Yrd Mat Total 395 | 17 378 Wait 50 | . 50 Move 278 | 17 261 Hop . | . . Pick Up . | . . Fast Attach . | . . Attach . | . . Detach . | . . Swap . | . . Drop . | . . Fire 34 | . 34 Melee . | . . Ram 4 | . 4 Kick 20 | . 20 Crush . | . . Escape Stasis . | . . Rewire . | . . Trap . | . . Miscellaneous 9 | . 9 Route ------- -11/Scrapyard -10/Materials (discovered 1 exit: [*Mat]) History --------- Turn | Location | Event 4 | -11/Scrapyard | Discovered new exit (range 14) 10 | -11/Scrapyard | Entered Materials 207 | -10/Materials | Core integrity fell below 50% 301 | -10/Materials | Discovered new exit (range 16) 440 | -10/Materials | Destroyed by exploding Fusion Modulator Last Messages --------------- PATCHED[Aluminum Leg] 00349_ ALERT: Suspicious activity at Repair Station M001. Dispatching Investigation squad. 00369_ K-01 Serf collects debris. 00373_ Kicked W-16 Scout out of the way. 00375_ Kicked W-16 Scout. 00398_ K-01 Serf collects debris. 00399_ U-05 Engineer works on Hadron Collector. 00401_ K-01 Serf collects debris. 00403_ Kicked U-05 Engineer. 00406_ U-05 Engineer works on Hadron Collector. 00408_ K-01 Serf collects debris. 00426_ Kicked A-02 Transporter. 00437_ G-34 Mercenary destroyed. 00440_ Fusion Modulator explodes. 00440_ Aluminum Leg destroyed. 00440_ Fusion Modulator explodes. 00440_ Terminal disabled. Map ----- +----------------------------------------------------+ | ?????????? %!% % ^" | | ?????????? = ^^" | | ???????????#+#################### " | | ?????????????????????? # % " | | ?????????????????????? """=#[ ####### | | ?????????????????????? """%+% #?????# | | ?????????????????????"T" """%#% #?????# #### | | ??????????????????????? ## ##????##+####+# | | ???????????????????############### ## | | ????????????????????########?????# ## | | ????????????????????# #?????# ## """"" """"" | | ????????????????????# ####### ## """"" """"" | | ????????????????????# """ + ## """"" """"" | | ????????????????????# T" ####### ## | | ????????????????????# """ ####### ############### | | ????????????????????# #] ## ##????????????? | | ?????????????###########a### ! # ############## | | ?????????????# % + # [ % | | ?????????????# # # ########+##### | | ?????????????# # ##+#####???# ???? | | ?????????????# #### ;;;;;### #???# ???? | | ?????????????# #?# # #???# ??? | | ?????????????# ### # " "" #???# ??? | | ?????????????# + # "R"" #???# ?? | | ?????????????# ### [ # """" #???# ?? | | ?????????????# #?# = g # #???######? | | ?????????????# ###;;;;;;;;;;##########?????????? | | ?????????????# ; #????????????????? | | ?????????????# ; #????????????????? | | ?????????????# + #????????????????? | | ???????????#####+####### # #????????????????? | | ???????????# # # #????????????????? | | ???????????# ##### #????????????????? | | ???????????# """ #???# #????????????????? | | ???????????# %""" #???# #????????????????? | | ???????????# """ #???# #????????????????? | | ???????????# "" #???######????????????????? | | ???????????# / #?????????????????????????? | | ???????????#############?????????????????????????? | | | | | | | | | | | | | | | | | | | | | | | +----------------------------------------------------+ Best States ------------- Heat Dissipation 40 Energy Generation 19 Energy Capacity 110 Sight Range 16 Terrain Scan Density 10 Evasion (%) 55 Item Schematics ----------------- None Robot Schematics ------------------ None Fabricated ------------ Nothing Repaired ---------- Nothing Alien Tech Used ----------------- None Achievements -------------- None Challenges ------------ None Polymind | -11 -10 ---------- Run | Yrd Mat Hosts 2 | . 2 Combat Hostiles 1 | . 1 Allies . | . . Unique Host Classes 2 | . 2 Average Host Suspicion 90 | . 90 Unsuspicious Activity 42 | . 42 Returns to Shadow . | . . Fuzzy Dispatches . | . . Protomatter Created . | . . Used 35 | . 35 Decayed . | . . Highest Spend 30 | . 30 Top 5 Hosts by Kills: G-47 Trooper (-10/Materials: 7) Game ------ Seed NuclearDynamicRifle Manual? 0 Play Time 00:05:45 Cumulative 184.3 hours Start 2025.05.23 @ 14:16:15 End 2025.05.23 @ 14:19:20 Sessions 1 Manual Loads 0 Difficulty Rogue Special Mode Winter2022/Polymind Game No. 209 Rogue 209 Adventurer 0 Explorer 0 Win Type - Total 1 Types 1/0/0/0/0/0/0/0/0/0 Lore% 71 Gallery% 70 Achievement% 61 Wizard Run 0 Options --------- Layout 1 ASCII 0 Keyboard 0 Movement Numpad Keybinds 0 Fullscreen 1 Font 24/Smallcaps Map View 50x35 Zoom Use 0% Tactical HUD 1 Map Filters NONE Filters NONE Steam 1 RUN: 6f3dca15-0593-4b3e-aadb-9ea0a69edfe8